Cogmind - Beta 17.1 @@@ ROGUE MODE // 2026.09.21 @ 18:07:57 Player: Caluan Result: Self-destructed Performance ------------- Evolutions (4) 2000 Regions Visited (9) 1800 Robots Destroyed (124) 620 Value Destroyed (3615) 3615 Prototype IDs (3) 60 Alien Tech Used (0) 0 Bonus (992) 992 TOTAL SCORE: 9087 Bonus ------- Follower Combat Kills 192 Registered with UFD 300 Met Optimus in HQ 500 Cogmind --------- Core Integrity 484/850 Matter 220/300 Energy 100/100 System Corruption 0% Temperature Cool (0) Movement Core (350) Ox6 Location -6/Factory Parts ------- > --- POWER (1) -------- (None) > --- PROPULSION (4) --- (None) > --- UTILITY (7) ------ Large Storage Unit Melee Analysis Suite Melee Analysis Suite > --- WEAPON (3) ------- (None) > --- INVENTORY (15) --- Improved Deuterium Engine Improved Deuterium Engine High-capacity Storage Unit Surveybot 17 Chip Microactuators Heavy Missile Launcher Datajack Plasma Cutter CPS Tube (2) CPS Tube (2) Heavy Mace Peak State ------------ > --- POWER ------------ Light Nuclear Core > --- PROPULSION ------- Aluminum Leg Aluminum Leg Carbon-fiber Leg Titanium Leg > --- UTILITY ---------- Large Storage Unit Melee Analysis Suite Melee Analysis Suite System Shield Improved System Restoration Module > --- WEAPON ----------- Katana Katana Scythe > --- INVENTORY -------- Improved Deuterium Engine Improved Deuterium Engine Carbon-fiber Leg High-capacity Storage Unit Surveybot 17 Chip Microactuators Missile Launcher Datajack Plasma Cutter CPS Tube CPS Tube Heavy Mace Katana [Rating: 39] Favorites ----------- Power Light Nuclear Core Engine Ion Engine Power Core Light Nuclear Core Propulsion Aluminum Leg Treads Improved Treads Leg Aluminum Leg Wheel Wheel Utility Large Storage Unit Device Shield Generator Storage Large Storage Unit Processor Melee Analysis Suite Hackware Hacking Suite Protection Hardened Light Armor Plating Weapon Katana Ballistic Gun Light Assault Rifle Launcher Heavy Missile Launcher Impact Weapon Flail Slashing Weapon Katana Build | -11 -10 -10 -9 -9 -8 -8 -8 -8 -6 ------- Run | Yrd Mat Min Mat Min Mat Sto Rec Scr Fac Slots Evolved 8 | . . . 2 . 2 . . . 4 Power . | . . . . . . . . . . Propulsion 2 | . . . 1 . . . . . 1 Utility 5 | . . . 1 . 1 . . . 3 Weapon 1 | . . . . . 1 . . . . Parts Attached 77 | 4 8 5 17 9 13 6 5 1 9 Power 8 | 1 . 1 2 2 1 1 . . . Engine 6 | 1 . 1 1 2 1 . . . . Core 2 | . . . 1 . . 1 . . . Reactor . | . . . . . . . . . . Propulsion 32 | 2 1 3 5 5 5 5 2 . 4 Treads 4 | . 1 . 1 . 2 . . . . Leg 27 | 2 . 3 4 5 3 5 2 . 3 Wheel 1 | . . . . . . . . . 1 Hover . | . . . . . . . . . . Flight . | . . . . . . . . . . Utility 18 | 1 . 1 6 1 5 . 2 1 1 Device 3 | . . . 2 . . . . 1 . Storage 3 | 1 . . 1 . 1 . . . . Processor 3 | . . . 1 . 1 . 1 . . Hackware 3 | . . . . . 1 . 1 . 1 Protection 6 | . . 1 2 1 2 . . . . Artifact . | . . . . . . . . . . Weapon 19 | . 7 . 4 1 2 . 1 . 4 Energy Gun . | . . . . . . . . . . Energy Cannon . | . . . . . . . . . . Ballistic Gun 2 | . 2 . . . . . . . . Ballistic Cannon . | . . . . . . . . . . Launcher 3 | . . . 1 . . . . . 2 Special Weapon . | . . . . . . . . . . Impact Weapon 6 | . 4 . 1 . . . . . 1 Slashing Weapon 8 | . 1 . 2 1 2 . 1 . 1 Piercing Weapon . | . . . . . . . . . . Special Melee Weapon . | . . . . . . . . . . Unidentified Prototypes . | . . . . . . . . . . Corrupted Parts 2 | . . 2 . . . . . . . System Corruption 16 | . . 16 . . . . . . . Parts Lost 42 | . 2 . 4 8 5 7 1 . 15 Power 6 | . 1 . 1 2 . 1 . . 1 Propulsion 23 | . 1 . 3 3 3 5 1 . 7 Utility 6 | . . . . 2 1 1 . . 2 Weapon 7 | . . . . 1 1 . . . 5 Highest Loss Streak 7 | . 1 . 1 6 2 4 1 . 7 To Critical Strikes . | . . . . . . . . . . Average Backups 10 | 1 6 7 8 13 9 12 10 12 12 Power 1 | . . . . 1 1 2 2 2 2 Propulsion 2 | . 1 1 1 5 2 2 1 1 . Utility 2 | . . 1 2 3 2 3 2 3 3 Weapon 3 | 1 4 4 3 3 1 3 3 3 3 Tool/Special . | . . . . . . . . . . Unused Backups 18 | . 3 . 3 . 1 . 2 . 9 Power 4 | . . . 1 . 1 . . . 2 Propulsion 1 | . . . 1 . . . . . . Utility 3 | . . . . . . . . . 3 Weapon 6 | . 3 . 1 . . . 2 . . Tool/Special 4 | . . . . . . . . . 4 Average Slot Usage (%) 92 | . 73 83 96 97 86 95 99 100 68 Engine 4 | . 5 9 6 7 9 3 . . . Core 4 | . . . 3 3 . 3 9 9 5 Leg 27 | . 21 27 31 32 23 26 27 27 16 Device 5 | . . . 9 9 . . . 7 3 Storage 10 | . 14 14 11 11 9 9 9 9 6 Processor 6 | . . . . . 5 9 13 18 13 Hackware 2 | . . . . . 3 9 13 1 4 Protection 5 | . . 3 11 9 6 6 . . . Impact Weapon 4 | . 12 28 13 . . . . . 1 Slashing Weapon 20 | . 11 . 8 21 26 27 26 27 16 Peak Build Rating 39 | 4 9 12 20 19 30 30 31 35 39 Average Rating 22 | 2 7 9 15 18 22 28 30 33 31 On Entrance 18 | . 4 9 12 19 14 30 26 31 35 Avg Prop Armor Cover (%) 12 | . 12 13 11 . . . . . . Naked Turns . | . . . . . . . . . . Heaviest Build 39 | 8 12 21 37 38 39 39 31 33 33 Greatest Support 60 | 20 23 20 30 33 60 36 42 42 52 Greatest Overweight (x) 7 | . . 1 1 3 1 1 . . 7 Average Overweight (x) . | . . . . . . . . . . Largest Inventory Capacity 15 | 8 8 8 15 15 15 15 15 15 15 Average Capacity 13 | 6 8 8 12 15 15 15 15 15 15 Most Carried 15 | 3 8 8 13 15 14 13 13 15 15 Average Carried 10 | 1 6 7 8 13 9 12 10 12 12 Final Capacity 15 | 8 8 8 15 15 15 15 15 15 15 Final Carried 15 | 2 8 8 12 11 13 12 10 15 11 Class Distribution -------------------- 44% | Scavenger-Gladiator 34% | Scavenger-Mutant 18% | Mutant Dominant Class ---------------- Mutant | -10/Materials Mutant | -10/Mines Scavenger-Mutant | -9/Materials Scavenger-Mutant | -9/Mines Scavenger-Gladiator | -8/Materials Scavenger-Gladiator | -8/Storage Scavenger-Gladiator | -8/Recycling Scavenger-Gladiator | -8/Scraptown Scavenger-Gladiator | -6/Factory Resources | -11 -10 -10 -9 -9 -8 -8 -8 -8 -6 ----------- Run | Yrd Mat Min Mat Min Mat Sto Rec Scr Fac Matter Collected 1070 | 219 75 71 261 90 147 74 60 18 55 Remotely . | . . . . . . . . . . Salvage Created 4597 | . 374 125 1006 562 881 1052 300 . 297 Parts 223 | . 9 5 51 30 48 49 14 . 17 Haulers Intercepted 7 | . . . 2 . 2 3 . . . Recyclers Shooed 2 | . . . . . . . 1 . 1 Parts Field Recycled . | . . . . . . . . . . Retrieved Matter . | . . . . . . . . . . Parts Self-Destructed . | . . . . . . . . . . Prevented . | . . . . . . . . . . Parts Restored . | . . . . . . . . . . Kills | -11 -10 -10 -9 -9 -8 -8 -8 -8 -6 ------- Run | Yrd Mat Min Mat Min Mat Sto Rec Scr Fac Combat Hostiles Destroyed 94 | . 9 2 31 9 17 14 3 . 9 Melee 71 | . 4 1 16 9 17 14 3 . 7 AOE 6 | . . . 4 . . . . . 2 Classes Destroyed 13 | . 6 . 3 2 2 . . . . Worker 7 | . 1 2 . 2 . 1 . . 1 Builder 4 | . 1 1 . 2 . . . . . Tunneler 1 | . . . . . 1 . . . . Hauler 7 | . . . 2 . 2 3 . . . Recycler 6 | . . . 1 1 . 2 2 . . Operator 2 | . 1 . 1 . . . . . . Watcher 3 | . 2 . 1 . . . . . . Swarmer 23 | . 3 . 13 . 3 . . . 4 Grunt 45 | . 6 2 11 5 9 10 . . 2 Duelist 2 | . . . . 1 1 . . . . Sentry 20 | . . . 7 2 3 4 3 . 1 Demolisher 1 | . . . . 1 . . . . . Hunter 3 | . . . . . 1 . . . 2 Best Kill Streak 8 | . 4 4 4 4 5 8 2 . 5 Combat Bots Only 7 | . 3 2 4 3 5 7 1 . 5 Max Kills in Single Turn 2 | . 1 1 2 1 1 1 1 . 1 Gunslinging . | . . . . . . . . . . Exploded 2 | . . . 2 . . . . . 1 Melee 1 | . 1 1 1 1 1 1 1 . 1 Uniques/NPCs Destroyed . | . . . . . . . . . . Combat | -11 -10 -10 -9 -9 -8 -8 -8 -8 -6 -------- Run | Yrd Mat Min Mat Min Mat Sto Rec Scr Fac Hostile Shots Fired 550 | . 49 7 161 65 75 78 4 . 111 Missed 147 | . 12 . 43 15 24 20 . . 33 Hits 403 | . 37 7 118 50 51 58 4 . 78 Melee 5 | . . . . 4 1 . . . . Projectile 398 | . 37 7 118 46 50 58 4 . 78 AOE 19 | . . . . 19 . . . . . Critical Strikes 15 | . 2 1 3 3 2 2 . . 2 Damage Taken 5449 | . 456 102 1022 1032 705 920 56 . 1156 Core 1078 | . 126 10 174 173 101 114 14 . 366 Absorbed by Shields 413 | . . . 222 191 . . . . . Regen/Repaired (Parts) 56 | . . . 56 . . . . . . Core Remaining (%) 54 | 100 . 45 . 13 . . . 58 . Volleys Fired 8 | . 1 . 2 . . . . . 5 Largest 2 | . 2 . 1 . . . . . 1 Hottest 40 | . 40 . 36 . . . . . 39 Shots Fired 9 | . 2 . 2 . . . . . 5 Gun 2 | . 2 . . . . . . . . Cannon . | . . . . . . . . . . Launcher 7 | . . . 2 . . . . . 5 Special . | . . . . . . . . . . Kinetic 2 | . 2 . . . . . . . . Thermal . | . . . . . . . . . . Explosive 7 | . . . 2 . . . . . 5 Electromagnetic . | . . . . . . . . . . Robot Hit Streak 3 | . 2 . . . . . . . 3 Robot Miss Streak 1 | . . . . . . . . . 1 Penetration Max . | . . . . . . . . . . Secondary Targets . | . . . . . . . . . . Shots Hit Robots 298 | . 33 11 67 32 58 52 13 . 32 Core Hits 106 | . 7 1 15 14 23 19 5 . 22 Critical Kills 1 | . . . 1 . . . . . . Critical Parts Destroyed 27 | . 8 3 15 . . . . . 1 Critical Strikes 47 | . 8 3 17 2 8 5 1 . 3 Smash 29 | . 8 3 17 . . . . . 1 Sever 18 | . . . . 2 8 5 1 . 2 Melee Attacks 383 | . 47 13 97 41 77 62 15 . 31 Impact 118 | . 38 13 64 . . . . . 3 Slashing 265 | . 9 . 33 41 77 62 15 . 28 Piercing . | . . . . . . . . . . Sneak Attacks 51 | . 6 5 6 10 4 9 9 . 2 Combat Hostiles 2 | . . . . 1 . 1 . . . Follow-up Attacks 52 | . 6 3 9 4 10 8 4 . 8 Damage Inflicted 12369 | . 1334 579 2744 1328 1942 1966 701 . 1775 Guns 22 | . 22 . . . . . . . . Cannons . | . . . . . . . . . . Explosions 916 | . . . 163 . . . . . 753 Melee 11431 | . 1312 579 2581 1328 1942 1966 701 . 1022 Ramming . | . . . . . . . . . . Kinetic 22 | . 22 . . . . . . . . Thermal . | . . . . . . . . . . Explosive 916 | . . . 163 . . . . . 753 Electromagnetic . | . . . . . . . . . . Impact 3785 | . 1131 579 1905 . . . . . 170 Slashing 7646 | . 181 . 676 1328 1942 1966 701 . 852 Piercing . | . . . . . . . . . . Highest Corruption 16 | . . 16 . . 3 3 3 3 . Average Corruption 4 | . . 15 . . 2 3 3 2 . Corruption Purged 3 | . . . . . . . . 3 . Corruption Blocked . | . . . . . . . . . . Effects 40 | . . 10 . . 4 7 16 3 . Message Errors 12 | . . 2 . . 2 1 5 2 . Matter Fused 9 | . . 2 . . 1 3 3 . . Heat Flow Errors 4 | . . 2 . . . . 2 . . Energy Discharges 3 | . . . . . . 2 1 . . Data Loss (minor) 6 | . . 1 . . . . 4 1 . Data Loss (major) 1 | . . 1 . . . . . . . Alerts 5 | . . 2 . . 1 1 1 . . Overload Shots . | . . . . . . . . . . Overflow Damage 2169 | . 489 294 996 126 46 103 34 . 81 Projectiles . | . . . . . . . . . . Explosions 25 | . . . . . . . . . 25 Melee 2144 | . 489 294 996 126 46 103 34 . 56 Knockbacks 10 | . 5 . 5 . . . . . . Impact 10 | . 5 . 5 . . . . . . Kinetic . | . . . . . . . . . . Secondary . | . . . . . . . . . . Self-Inflicted Damage 16 | . . . . . . . . . 16 Shots 3 | . . . . . . . . . 3 Rammed . | . . . . . . . . . . Targets Rammed . | . . . . . . . . . . Kicked . | . . . . . . . . . . Crushed . | . . . . . . . . . . Highest Temperature 281 | . 9 281 5 5 9 25 266 . . Average Temperature 103 | . 7 144 4 4 9 10 121 . . Received Heat Transfer 1823 | . 261 72 274 166 225 513 18 . 294 Siege Activations . | . . . . . . . . . . Martial Activations . | . . . . . . . . . . Shielding Activations . | . . . . . . . . . . Robots Disrupted . | . . . . . . . . . . Combat Hostiles . | . . . . . . . . . . Robots Corrupted 20 | . 7 1 12 . . . . . . Combat Hostiles 17 | . 5 1 11 . . . . . . Parts Fried 30 | . 13 2 15 . . . . . . Impact Corruptions 53 | . 16 7 29 . . . . . 1 Robots Melted . | . . . . . . . . . . Combat Hostiles . | . . . . . . . . . . Parts Melted . | . . . . . . . . . . Heat Transferred . | . . . . . . . . . . Parts Sabotaged . | . . . . . . . . . . Parts Stolen . | . . . . . . . . . . Parts Stripped . | . . . . . . . . . . Power Chain Reactions . | . . . . . . . . . . Alert | -11 -10 -10 -9 -9 -8 -8 -8 -8 -6 ------- Run | Yrd Mat Min Mat Min Mat Sto Rec Scr Fac Maximum Alert Level 1 | . . . 1 . 1 . . . . Low Security (%) 83 | 100 100 100 54 100 73 100 100 . 100 Level 1 16 | . . . 45 . 26 . . . . Level 2 . | . . . . . . . . . . Level 3 . | . . . . . . . . . . Level 4 . | . . . . . . . . . . Level 5 . | . . . . . . . . . . High Security . | . . . . . . . . . . Max Security . | . . . . . . . . . . Peak Influence 340 | . 83 59 298 105 340 191 63 . 77 Initial 105 | . . 12 13 105 33 35 63 . . Average 96 | . 27 26 195 40 148 108 9 . 14 Influence Increases 3107 | . 268 99 889 402 746 391 70 . 242 Destroy 0b10 Robot/C 2040 | . 180 60 620 240 420 280 60 . 180 Destroy 0b10 Robot/NC 150 | . 25 15 25 25 15 30 10 . 5 Destroy Leader 460 | . 44 20 166 40 94 66 . . 30 Allied During Kill 17 | . . 4 . 5 8 . . . . Successful Hack 38 | . 4 . 13 2 14 . . . 5 Disable Machine 30 | . . . . . 30 . . . . Destroy Structure 42 | . . . 20 . . . . . 22 Lose Combat Pursuer 330 | . 15 . 45 90 165 15 . . . Influence Decreases 3050 | . 237 96 652 586 748 313 233 . 185 Entered New Map 410 | . . 19 21 166 54 50 100 . . Time Decay 2170 | . 217 77 591 400 474 193 133 . 85 Lost Part 300 | . 20 . 40 20 50 70 . . 100 Lost Ally 20 | . . . . . 20 . . . . Purge Threat 150 | . . . . . 150 . . . . Squads Dispatched 10 | . 1 1 3 1 1 2 . . 1 Investigation 2 | . . 1 . . 1 . . . . Extermination . | . . . . . . . . . . Reinforcement 7 | . 1 . 3 . . 2 . . 1 Assault 1 | . . . . 1 . . . . . Garrison . | . . . . . . . . . . Intercept . | . . . . . . . . . . Searches Triggered . | . . . . . . . . . . Construction Impeded . | . . . . . . . . . . Haulers Reinforced 1 | . . . . . . . . . 1 Active Scanning Responses . | . . . . . . . . . . Cargo Convoy Interrupts . | . . . . . . . . . . Stealth | -11 -10 -10 -9 -9 -8 -8 -8 -8 -6 --------- Run | Yrd Mat Min Mat Min Mat Sto Rec Scr Fac Distress Signals 11 | . 3 . 4 . 2 1 . . 1 Communications Jammed . | . . . . . . . . . . Distress Signals . | . . . . . . . . . . Times Spotted 149 | . 17 2 43 19 35 17 2 . 14 Peak Tracking Total 7 | . 4 2 6 4 5 5 1 . 7 Tactical Retreats 16 | . 1 . 3 3 8 1 . . . Traps | -11 -10 -10 -9 -9 -8 -8 -8 -8 -6 ------- Run | Yrd Mat Min Mat Min Mat Sto Rec Scr Fac Traps Triggered 3 | . . . . . 3 . . . . Indirectly . | . . . . . . . . . . Trap Hack Attempts . | . . . . . . . . . . Triggered . | . . . . . . . . . . Disarmed . | . . . . . . . . . . Reprogrammed . | . . . . . . . . . . Reused . | . . . . . . . . . . Traps Extracted . | . . . . . . . . . . Installed . | . . . . . . . . . . Triggered . | . . . . . . . . . . Machines | -11 -10 -10 -9 -9 -8 -8 -8 -8 -6 ---------- Run | Yrd Mat Min Mat Min Mat Sto Rec Scr Fac Machines Disabled 2 | . . . . . 2 . . . . Max in Single Turn . | . . . . . . . . . . Machines Repaired . | . . . . . . . . . . Machines Dismantled . | . . . . . . . . . . Machines Sabotaged . | . . . . . . . . . . Overloaded Fab Kills . | . . . . . . . . . . Hacking | -11 -10 -10 -9 -9 -8 -8 -8 -8 -6 --------- Run | Yrd Mat Min Mat Min Mat Sto Rec Scr Fac Machines Accessed 31 | . 3 1 8 1 4 . 6 6 2 Terminals 16 | . 3 . 4 1 3 . 3 . 2 Fabricators . | . . . . . . . . . . Repair Stations 2 | . . . 2 . . . . . . Recycling Units 3 | . . . . . . . 3 . . Scanalyzers 3 | . . . 2 . 1 . . . . Garrison Access . | . . . . . . . . . . Total Hacks 99 | . 6 1 16 2 9 . 15 44 6 Successful 81 | . 4 1 11 2 7 . 9 44 3 Failed 17 | . 2 . 4 . 2 . 6 . 3 Catastrophic . | . . . . . . . . . . Database Lockouts 1 | . . . 1 . . . . . . Manual 32 | . 6 . 6 . 5 1 8 . 6 Terminals 38 | . 6 . 7 2 7 . 10 . 6 Fabricators . | . . . . . . . . . . Repair Stations 5 | . . . 5 . . . . . . Recycling Units 5 | . . . . . . . 5 . . Scanalyzers 6 | . . . 4 . 2 . . . . Garrison Access . | . . . . . . . . . . Terminal Hacks 54 | . 1 1 1 2 2 . 2 44 1 Record 38 | . . . . 1 . . . 37 . Robot Analysis 9 | . 1 . . . . . 1 7 . Open Door 1 | . . 1 . . . . . . . Branch Access Points 1 | . . . . . 1 . . . . Terminal Index 1 | . . . . . . . 1 . . Recycling Unit Index 1 | . . . . . . . . . 1 Unreport Threat 1 | . . . . . 1 . . . . Locate Traps 1 | . . . 1 . . . . . . Zone Layout 1 | . . . . 1 . . . . . Fabricator Hacks . | . . . . . . . . . . Repair Station Hacks 4 | . . . 4 . . . . . . Scan Component 2 | . . . 2 . . . . . . Repair 2 | . . . 2 . . . . . . Recycling Unit Hacks 5 | . . . . . . . 5 . . Report Inventory 3 | . . . . . . . 3 . . Retrieve Components 2 | . . . . . . . 2 . . Scanalyzer 5 | . . . 3 . 2 . . . . Insert Component 1 | . . . 1 . . . . . . Analyze 1 | . . . 1 . . . . . . Retrieve Study 3 | . . . 1 . 2 . . . . Garrison Access Hacks . | . . . . . . . . . . Unauthorized Hacks 13 | . 3 . 3 . 3 . 2 . 2 Terminals 13 | . 3 . 3 . 3 . 2 . 2 Botnet 13 | . 3 . 3 . 3 . 2 . 2 Fabricators . | . . . . . . . . . . Repair Stations . | . . . . . . . . . . Recycling Units . | . . . . . . . . . . Scanalyzers . | . . . . . . . . . . Garrison Access . | . . . . . . . . . . Data Cores Recovered . | . . . . . . . . . . Used . | . . . . . . . . . . Hacking Detections 11 | . 2 . 2 . 3 . 3 . 1 Full Trace Events . | . . . . . . . . . . Feedback Events . | . . . . . . . . . . Feedback Blocked . | . . . . . . . . . . Robot Schematics Acquired . | . . . . . . . . . . Robots Built . | . . . . . . . . . . Authchips . | . . . . . . . . . . Time . | . . . . . . . . . . Total Robot Build Rating . | . . . . . . . . . . Part Schematics Acquired 1 | . . . 1 . . . . . . Parts Built . | . . . . . . . . . . Authchips . | . . . . . . . . . . Time . | . . . . . . . . . . Total Part Build Rating . | . . . . . . . . . . Part Studies Acquired 3 | . . . 1 . 2 . . . . Parts Repaired 2 | . . . 2 . . . . . . Time 64 | . . . 64 . . . . . . Parts Recycled . | . . . . . . . . . . Recycled Matter . | . . . . . . . . . . Retrieved Matter . | . . . . . . . . . . Retrieved Components 4 | . . . . . . . 4 . . Parts Scanalyzed 1 | . . . 1 . . . . . . Part Schematics Acquired 1 | . . . 1 . . . . . . Parts Damaged . | . . . . . . . . . . Bothacking | -11 -10 -10 -9 -9 -8 -8 -8 -8 -6 ------------ Run | Yrd Mat Min Mat Min Mat Sto Rec Scr Fac Used RIF Installer . | . . . . . . . . . . Robots Hacked . | . . . . . . . . . . Non-combat . | . . . . . . . . . . Combat . | . . . . . . . . . . Robot Hacks Applied . | . . . . . . . . . . Relay Couplers Released . | . . . . . . . . . . Fabnet Peak Effective % . | . . . . . . . . . . Robots Rewired . | . . . . . . . . . . Allies Hacked . | . . . . . . . . . . Hacks Repelled . | . . . . . . . . . . Allies | -11 -10 -10 -9 -9 -8 -8 -8 -8 -6 -------- Run | Yrd Mat Min Mat Min Mat Sto Rec Scr Fac Total Allies 3 | . . 2 . 1 . . . . . Largest Group 2 | . . 2 . 1 1 . . . . Highest-Rated Group 46 | . . 46 . 31 31 . . . . Highest-Rated Ally 31 | . . 31 . 31 31 . . . . Initial UFD Resources 22 | . . . . . . . . . 22 Total Orders . | . . . . . . . . . . Ally Attacks 25 | . . 2 . 8 15 . . . . Total Damage 275 | . . 41 . 86 148 . . . . Kills 8 | . . 1 . 3 4 . . . . Allies Corrupted . | . . . . . . . . . . Allies Melted . | . . . . . . . . . . Intel | -11 -10 -10 -9 -9 -8 -8 -8 -8 -6 ------- Run | Yrd Mat Min Mat Min Mat Sto Rec Scr Fac Active Infowar (turns) . | . . . . . . . . . . Robot Analysis Total 9 | . 1 . . . . . 1 7 . Derelict Logs Recovered 1 | . . . . 1 . . . . . Drone Launches . | . . . . . . . . . . Drone Recoveries . | . . . . . . . . . . Exploration | -11 -10 -10 -9 -9 -8 -8 -8 -8 -6 ------------- Run | Yrd Mat Min Mat Min Mat Sto Rec Scr Fac Turns Passed 9293 | 69 774 189 1903 1489 1210 410 799 2100 350 Spaces Moved 5545 | 56 455 102 843 726 574 178 659 1769 183 Core 14 | 11 . . . . . . . . 3 Treads 225 | . 191 . . . 34 . . . . Legs 5302 | 45 264 102 843 726 540 178 659 1769 176 Wheels 4 | . . . . . . . . . 4 Hover . | . . . . . . . . . . Flight . | . . . . . . . . . . Fastest Speed 50 | 50 120 120 120 120 110 110 110 118 110 Average Speed 141 | 106 136 135 161 184 168 146 114 118 135 Slowest Speed 400 | 120 160 190 190 330 190 190 118 118 400 Overloaded Moves . | . . . . . . . . . . Propulsion Burnouts . | . . . . . . . . . . Robots Hopped . | . . . . . . . . . . Potential Cave-ins . | . . . . . . . . . . Cave-ins Triggered . | . . . . . . . . . . Exploration Rate (%) 55 | 4 78 25 82 91 54 34 87 92 7 Regions Visited 9 Branch Regions 5 Pre-discovered Areas . | . . . . . . . . . . Known Exits Taken 1 | . . . . . 1 . . . . Unknown Exits Taken 8 | 1 1 1 1 1 . 1 1 1 . Scrap Searched 3 | . . . . 1 . . . 2 . Spaces Dug . | . . . . . . . . . . Terrain Destroyed 42 | . . . 20 . . . . . 22 Melee . | . . . . . . . . . . Projectile . | . . . . . . . . . . AOE 42 | . . . 20 . . . . . 22 Terrain Rammed . | . . . . . . . . . . Walls Destroyed . | . . . . . . . . . . Machines Disabled . | . . . . . . . . . . Actions | -11 -10 -10 -9 -9 -8 -8 -8 -8 -6 --------- Run | Yrd Mat Min Mat Min Mat Sto Rec Scr Fac Total 6485 | 65 545 135 1229 819 729 251 687 1781 244 Wait 429 | . 23 10 249 40 61 17 6 6 17 Move 5536 | 55 454 101 842 725 573 177 658 1768 183 Hop . | . . . . . . . . . . Pick Up 79 | 6 12 5 18 6 16 3 4 5 4 Fast Attach 18 | . 3 1 7 1 2 2 1 1 . Attach 49 | 4 5 1 6 6 11 4 3 . 9 Detach 4 | . 2 . . . . . . . 2 Swap 19 | . 1 3 8 3 2 . 1 . 1 Drop 42 | . 6 5 14 3 7 . 5 1 1 Fire 8 | . 1 . 2 . . . . . 5 Melee 301 | . 38 9 83 35 57 48 9 . 22 Ram . | . . . . . . . . . . Kick . | . . . . . . . . . . Crush . | . . . . . . . . . . Escape Stasis . | . . . . . . . . . . Rewire . | . . . . . . . . . . Trap . | . . . . . . . . . . Miscellaneous . | . . . . . . . . . . Route ------- -11/Scrapyard -10/Materials (discovered 4 exits: *Mat x3 / *Min) -10/Mines -9/Materials (discovered 2 exits: *Mat / *Min) -9/Mines (discovered 3 exits: *Mat x2 / [*Zio]) -8/Materials (discovered 4 exits: [*Fac x2] / *Sto x2) -8/Storage -8/Recycling -8/Scraptown (discovered 2 exits: *Fac x2) -6/Factory History --------- Turn | Location | Event 4 | -11/Scrapyard | Discovered new exit (range 15) 70 | -11/Scrapyard | Entered Materials 300 | -10/Materials | Build established: Mutant 324 | -10/Materials | Discovered new exit (range 10) 571 | -10/Materials | Discovered new exit (range 3) 613 | -10/Materials | Core integrity fell below 50% 734 | -10/Materials | Discovered new exit (range 15) 820 | -10/Materials | Discovered new exit (range 15) 844 | -10/Materials | Entered Mines 845 | -10/Mines | System corruption reached 10% 867 | -10/Mines | Discovered new exit (range 12) 959 | -10/Mines | Met a Derelict shopkeep closing up shop 1033 | -10/Mines | Entered Materials 1033 | -9/Materials | Evolved 2 slots: Propulsion x1, Utility x1 1300 | -9/Materials | Discovered new exit (range 15) 1600 | -9/Materials | Build established: Scavenger-Mutant 1641 | -9/Materials | Repaired Shield Generator 1707 | -9/Materials | Central database locked down 2669 | -9/Materials | Repaired Shield Generator 2711 | -9/Materials | Discovered new exit (range 15) 2936 | -9/Materials | Entered Mines 2937 | -9/Mines | A Derelict revealed a hidden shortcut to a safe place 2950 | -9/Mines | Learned Materials terminal intel 2990 | -9/Mines | Met a Derelict bent on vengeance 3451 | -9/Mines | Assembled infested the area 4249 | -9/Mines | Core integrity fell below 50% 4311 | -9/Mines | Lost 6 parts (3n2u1w) 4320 | -9/Mines | Met a Derelict testing a Signal Generator 4358 | -9/Mines | Core integrity fell below 20% 4410 | -9/Mines | Discovered new exit (range 7) 4425 | -9/Mines | Discovered new exit (range 8) 4425 | -9/Mines | Entered Materials 4425 | -8/Materials | Accompanied by 1 ally 4425 | -8/Materials | Evolved 2 slots: Utility x1, Weapon x1 4426 | -8/Materials | Loaded intel: 11 terminal locations 4474 | -8/Materials | Discovered new exit (range 13) 5004 | -8/Materials | Discovered new exit (range 10) 5166 | -8/Materials | Build established: Scavenger-Gladiator 5223 | -8/Materials | Identified exit to Storage 5503 | -8/Materials | Discovered new exit (range 10) 5635 | -8/Materials | Entered Storage 5846 | -8/Storage | Lost 4 parts (1p3n) 5850 | -8/Storage | Destroyed 7 combat bots 6001 | -8/Storage | Used back door to open Recycling access 6001 | -8/Storage | Discovered new exit (range 5) 6045 | -8/Storage | Entered Recycling 6522 | -8/Recycling | Scanned before Scraplab entrance 6831 | -8/Recycling | Entered Scraplab 6842 | -8/Recycling | Discovered new exit (range 2) 6844 | -8/Recycling | Entered Scraptown 7100 | -8/Scraptown | Heard Great Nut preacher, LISTEN AND RECITE! 7219 | -8/Scraptown | Discovered new exit (range 5) 7341 | -8/Scraptown | Visited Shadow of the Wyrm 7359 | -8/Scraptown | Visited Scrapoid Research Area 7422 | -8/Scraptown | Visited SPCMW 7463 | -8/Scraptown | Visited CPS Storage 7499 | -8/Scraptown | Visited The Evicted 7537 | -8/Scraptown | Visited UFD Registry 7571 | -8/Scraptown | Visited Assassins FH 7811 | -8/Scraptown | Registered with UFD as "Gravdriver" 7856 | -8/Scraptown | Visited Science Testing Area 7876 | -8/Scraptown | Visited Junk Repository 7927 | -8/Scraptown | Visited Chapter 10 8038 | -8/Scraptown | Visited Abandonware Association 8060 | -8/Scraptown | Learned abandonware demo "ERRANTS.EXE" 8087 | -8/Scraptown | Visited Scrap Suit Storage 8106 | -8/Scraptown | Visited Curators Association 8303 | -8/Scraptown | Visited Analyses Database 8332 | -8/Scraptown | Visited LU-1G1's Boring Crew 8355 | -8/Scraptown | Visited Science Guys 8524 | -8/Scraptown | Visited Cartography Club 8563 | -8/Scraptown | Found Surveybot 17 Chip 8854 | -8/Scraptown | Met Optimus 8854 | -8/Scraptown | Accepted into 0bPrime 8941 | -8/Scraptown | Discovered new exit (range 3) 8944 | -8/Scraptown | Entered Factory 8944 | -6/Factory | Evolved 4 slots: Propulsion x1, Utility x3 9163 | -6/Factory | Lost 7 parts (4n1u2w) 9287 | -6/Factory | Lost 7 parts (1p3n1u2w) 9294 | -6/Factory | Self-destructed Last Messages --------------- 09259_ Penetrated by Slug. 09260_ The unstable cave ceiling collapses. 09261_ Destroyed Hvy. Assault Rifle. 09261_ Destroyed Imp. Ion Engine. 09261_ Destroyed Wheel. 09261_ Destroyed Lgt. Deuterium Engine. 09263_ H-66 Slayer destroyed. 09263_ Destroyed Com. Wheel. 09267_ K-01 Serf collects debris. 09281_ U-05 Engineer lays Concrete. 09289_ The unstable cave ceiling collapses. 09289_ U-05 Engineer lays Concrete. 09290_ Katana+ destroyed. 09290_ Critical hit (Burn: +37). 09291_ U-05 Engineer builds a Wall. 09291_ U-05 Engineer lays Concrete. 09292_ The unstable cave ceiling collapses. 09293_ U-05 Engineer builds a Wall. 09294_ U-05 Engineer lays Concrete. [Achievement: I Think I Know What's Going On] Map ----- +----------------------------------------------------+ | ?????????????????????????????????????????????????? | | ??????????????????????????? "??????????????????? | | ??????????????????????????# "??????????????????? | | ??????????????????????????# ??????????????????? | | ??????????????????????????# ??????????????????? | | ??????????????????????????# #??????????????????? | | ?????????????????? ???????# #??????????????????? | | ?????????????????# ???????# #??????????????????? | | ???????????????### ##????## ##?????????????????? | | ???????????????# ##### #?????????????????? | | ???????????????# "" #?????????????????? | | ???????????????? T #?????????????????? | | ???????????????? ? #?????????????????? | | ???????????????? ???## #?????????????????? | | ????????????????# ########/###?????????????????? | | ????????????????# # u #?????????????????? | | ????????????????# # = ??????????????????? | | ????????????????# # #??????????????????? | | ????????????????# # #??????????????????? | | ????????????????# # #####??????????????????? | | ????????#####+### # ####???????????????? | | ???? #???????????????? | | ???? +???????????????? | | ???? # # #???????????????? | | ?????############# ### g ## #???????????????? | | ???????????????? ??####@#### #???????????????? | | ??????????????? ???# g% ## #???????????????? | | ??????????????#####??## [[[g;# #???????????????? | | ?????????????????????#; [[[ ;# ^^#???????????????? | | ????????????????????##; [[ ;; #???????????????? | | ????????????????????# ; ;; #???????????????? | | ????????????????????# ; u#; #???????????????? | | ???????????????????# ; ## #???????????????? | | ???????????????????## ; / #???????????????? | | ????????????????????# ; k##"# #???????????????? | | ????????????????????##; # # ######## #??????? | | ?????????????????????#; #### / | | ?????????????????????## ##?# ##+###########??? | | ??????????????????????########?# # ! #??? | | ???????????????????????????????# + #??? | | ???????????????????????????????# # #??? | | ????????????????????#########??# # = #??? | | ????????????????????# ???# # #??? | | ?########???????????# """" ## # #??? | | ?# #???????????#! """" ## # #??? | | ?# #???????????# """" ## # #??? | | ?# #???????????# """" ## # #??? | | ?# #???????????# """" ## # %#??? | | ?# #???????????# """" ## # #??? | | ?# #???######### ## # #??? | +----------------------------------------------------+ Best States ------------- Heat Dissipation 37 Energy Generation 16 Energy Capacity 290 Matter Stores 300 Matter Capacity 300 Sight Range 16 Terrain Scan Density 10 Armor Coverage 300 Evasion (%) 55 Melee Accuracy 10 Recoil Reduction 3 Offensive Hacking 20 Defensive Hacking 10 Item Schematics ----------------- Katana | -9/Materials | Scanalyzed Robot Schematics ------------------ None Fabricated ------------ Nothing Repaired ---------- Shield Generator | 6% | -9/Materials Shield Generator | 6% | -9/Materials Studied --------- Maul | -9/Materials | Hacked Katana | -8/Materials | Hacked Aluminum Leg | -8/Materials | Hacked Alien Tech Used ----------------- None Achievements -------------- I Think I Know What's Going On Challenges ------------ None Game ------ Seed ReinforcedResetFist Manual? 0 Play Time 00:49:25 Cumulative 311.3 hours Start 2026.09.21 @ 17:18:14 End 2026.09.21 @ 18:07:57 Sessions 1 Manual Loads 0 Difficulty Rogue Special Mode None Game No. 338 Rogue 338 Adventurer 0 Explorer 0 Win Type - Total 3 Types 3/0/0/0/0/0/0/0/0/0 Lore% 50 Gallery% 59 Achievement% 45 Wizard Run 0 Options --------- Layout 1 ASCII 0 Keyboard 0 Movement Numpad Keybinds 0 Fullscreen 2 Font 24/Smallcaps Map View 50x35 Zoom Use 0% Tactical HUD 1 Map Filters NONE Filters NONE Steam 1 RUN: 0684d915-ce18-48a7-bd12-14a92c8f60fa